bitfinex-derivatives/quotes_BTCF0:USTF0_20250805
["timestamp","ask_amount","ask_price","bid_price","bid_amount"]
[1754392678350,0.82507453,114870.0,114860.0,1.29654112]
[1754392678948,0.29928721,114870.0,114860.0,1.29654112]
[1754392679148,0.12516801,114870.0,114860.0,1.29654112]
[1754392681148,0.29928721,114870.0,114860.0,1.29654112]
[1754392682062,0.29928721,114870.0,114860.0,1.56134112]
[1754392684461,0.19928721,114870.0,114860.0,1.56134112]
[1754392685162,0.02516801,114870.0,114860.0,1.56134112]
[1754392686260,0.19928721,114870.0,114860.0,1.56134112]
[1754392691166,0.02516801,114870.0,114860.0,1.56134112]
[1754392692058,0.73908232,114880.0,114870.0,0.2913092]
[1754392692258,0.69555362,114880.0,114870.0,0.7149688]
[1754392692454,0.73908352,114880.0,114870.0,0.7149688]
[1754392692864,0.78505352,114880.0,114870.0,0.7149688]
[1754392695070,0.90018153,114880.0,114870.0,0.7149688]
[1754392697467,0.90018153,114880.0,114870.0,0.7169688]
[1754392697868,0.90018153,114880.0,114870.0,0.7179688]
[1754392698060,0.49446501,114880.0,114870.0,0.7179688]
[1754392698367,0.85421153,114880.0,114870.0,0.7179688]
[1754392698568,0.89080153,114880.0,114870.0,0.7179688]
[1754392698761,0.90018153,114880.0,114870.0,0.7179688]
[1754392698957,0.90018153,114880.0,114870.0,0.7189688]
[1754392699765,0.49446501,114880.0,114870.0,0.7189688]
[1754392699967,0.45093511,114880.0,114870.0,0.7189688]
[1754392702563,0.00938,114880.0,114870.0,0.7189688]
[1754392702770,0.2332694,114890.0,114880.0,0.378334]
[1754392702970,0.2332694,114890.0,114880.0,1.37865052]
[1754392703573,0.2767949,114890.0,114880.0,1.37865052]
[1754392703971,0.2867949,114890.0,114880.0,1.37965052]
[1754392705073,0.2867949,114890.0,114880.0,1.38065052]
[1754392705772,0.40192291,114890.0,114880.0,1.38065052]
[1754392706171,0.35839741,114890.0,114880.0,1.38065052]
[1754392706877,0.31487191,114890.0,114880.0,1.38065052]
[1754392707377,0.31487191,114890.0,114880.0,1.45175813]
[1754392708278,0.12512801,114890.0,114880.0,1.45175813]
[1754392708673,0.12512801,114890.0,114880.0,1.71655813]
[1754392709180,0.0435221,114900.0,114890.0,0.3086822]
[1754392709476,0.2611288,114900.0,114890.0,0.78401872]
[1754392709780,0.2611048,114910.0,114900.0,0.2912635]
[1754392709972,0.2611048,114910.0,114900.0,1.29154002]
[1754392710376,0.66682132,114910.0,114900.0,1.29154002]
[1754392710678,0.2611048,114910.0,114900.0,1.29154002]
[1754392711473,0.2611048,114910.0,114900.0,0.8858235]
[1754392711673,0.2611048,114910.0,114900.0,1.29154002]
[1754392712274,0.37623271,114910.0,114900.0,1.29154002]
[1754392712474,0.78194923,114910.0,114900.0,1.29154002]
[1754392713181,0.37623271,114910.0,114900.0,1.29154002]
[1754392715085,0.37623271,114910.0,114900.0,0.8858235]
[1754392715383,0.37623271,114910.0,114900.0,1.29154002]
[1754392715579,0.37623271,114910.0,114900.0,0.8858235]
[1754392715780,0.62327372,114920.0,114910.0,0.2903271]
[1754392716284,0.3915972,114920.0,114910.0,0.69604362]
[1754392717684,0.2175572,114920.0,114910.0,0.2903271]
[1754392717881,0.2175572,114920.0,114910.0,0.69604362]
[1754392718984,0.2175572,114920.0,114910.0,0.52198652]
[1754392719485,0.1740432,114920.0,114910.0,0.49918652]
[1754392719686,0.1740432,114920.0,114910.0,0.52198652]
[1754392720088,0.1740432,114920.0,114910.0,0.69604492]
[1754392729795,0.1740832,114920.0,114910.0,0.69604492]
[1754392730398,0.1740832,114920.0,114910.0,1.29104492]
[1754392730596,0.1740832,114920.0,114910.0,0.8853284]
[1754392730785,0.1740832,114920.0,114910.0,1.29104492]
[1754392731495,0.1740832,114920.0,114910.0,1.29204492]
[1754392731687,0.1740832,114920.0,114910.0,1.29304492]
[1754392732296,0.1740832,114920.0,114910.0,0.8873284]
[1754392732500,0.1740832,114920.0,114910.0,1.29304492]
[1754392734301,0.1740832,114920.0,114910.0,1.29314493]
[1754392739914,0.1740832,114920.0,114910.0,0.69814493]
[1754392740211,0.1740832,114920.0,114910.0,1.29486493]
[1754392742513,0.1740832,114920.0,114910.0,0.88914841]
[1754392742709,0.1740832,114920.0,114910.0,1.29486493]
[1754392766722,0.1305301,114930.0,114920.0,0.3058835]
[1754392766925,0.3045584,114930.0,114920.0,1.11741655]
[1754392769722,0.3120184,114930.0,114920.0,1.71329655]
[1754392770232,0.3120184,114930.0,114920.0,1.30758003]
[1754392772330,0.3120184,114930.0,114920.0,0.90186351]
[1754392772632,0.3120184,114930.0,114920.0,1.30758003]
[1754392773334,0.3120184,114930.0,114920.0,0.71170003]
[1754392773532,0.3120184,114930.0,114920.0,1.30754003]
[1754392775736,0.3120184,114930.0,114920.0,0.90182351]
[1754392775937,1.13508144,114930.0,114920.0,0.02417001]
[1754392776137,1.13508144,114930.0,114920.0,1e-08]
[1754392776138,1.60910544,114930.0,114920.0,1e-08]
[1754392776532,0.1740587,114910.0,114900.0,0.61862]
[1754392776733,0.59886522,114910.0,114900.0,0.02282]
[1754392776931,0.59886522,114910.0,114900.0,0.61874]
[1754392777136,0.59886522,114910.0,114900.0,0.61882]
[1754392778738,0.55345593,114910.0,114900.0,0.02282]
[1754392778941,0.55345593,114910.0,114900.0,0.61878]
[1754392780337,0.55345593,114910.0,114900.0,0.61866]
[1754392780528,0.55345593,114910.0,114900.0,0.65391]
[1754392781129,0.55345593,114910.0,114900.0,0.70818]
[1754392781335,0.55345593,114910.0,114900.0,0.72983]
[1754392783041,0.55345593,114910.0,114900.0,0.13399]
[1754392783233,0.55345593,114910.0,114900.0,0.72971]
[1754392783641,0.1931487,114910.0,114900.0,0.72971]
[1754392787845,0.55345593,114910.0,114900.0,0.72971]
[1754392788637,0.1931487,114910.0,114900.0,0.72971]
[1754392790251,0.1931487,114910.0,114900.0,0.13399]
[1754392790452,0.1931487,114910.0,114900.0,0.73011]
[1754392791848,0.1931487,114910.0,114900.0,0.13399]
[1754392792055,0.1931487,114910.0,114900.0,0.73007]
[1754392797455,0.1931487,114910.0,114900.0,0.73015]
[1754392798762,0.59843783,114910.0,114900.0,1.13543913]
[1754392799262,0.1931487,114910.0,114900.0,1.13543913]
[1754392799463,0.59843783,114910.0,114900.0,1.13543913]
[1754392800565,0.1931487,114910.0,114900.0,1.13543913]
[1754392800970,0.59843783,114910.0,114900.0,1.13543913]
[1754392801970,0.1931487,114910.0,114900.0,1.13543913]
[1754392802171,0.59843783,114910.0,114900.0,1.13543913]
[1754392802671,0.1931487,114910.0,114900.0,1.13543913]
[1754392802870,0.59843783,114910.0,114900.0,1.13543913]
[1754392803071,0.59109783,114910.0,114900.0,1.13543913]
[1754392803666,0.1740587,114910.0,114900.0,1.13543913]
[1754392803873,0.57934783,114910.0,114900.0,1.13543913]
[1754392804172,0.1740587,114910.0,114900.0,1.13543913]
[1754392804371,0.57934783,114910.0,114900.0,1.13543913]
[1754392804874,0.1740587,114910.0,114900.0,1.13543913]
[1754392805067,0.57934783,114910.0,114900.0,1.30951303]
[1754392805776,0.57934783,114910.0,114900.0,1.13543913]
[1754392806874,0.1740587,114910.0,114900.0,1.13543913]
[1754392807174,0.1740587,114910.0,114900.0,0.71335303]
[1754392807369,0.1740587,114910.0,114900.0,1.71512216]
[1754392808878,0.1740587,114910.0,114900.0,1.26472783]
[1754392811378,0.1740587,114910.0,114900.0,1.09065393]
[1754392811782,0.1740587,114910.0,114900.0,0.73047]
[1754392811978,0.1740587,114910.0,114900.0,1.09065393]
[1754392813280,0.1845087,114910.0,114900.0,0.13399]
[1754392813575,0.55122263,114910.0,114900.0,0.73035]
[1754392815785,0.55122263,114910.0,114900.0,0.02282]
[1754392815985,0.58999263,114910.0,114900.0,1e-07]
[1754392816177,0.56064263,114910.0,114900.0,1e-07]
[1754392816377,0.2004587,114910.0,114900.0,1e-07]
[1754392816779,0.56064263,114910.0,114900.0,0.0354701]
[1754392817281,0.58999263,114910.0,114900.0,0.0354701]
[1754392819281,0.2298087,114910.0,114900.0,0.0354701]
[1754392819482,0.58999263,114910.0,114900.0,0.0354701]
[1754392823286,0.58999263,114910.0,114900.0,0.0727201]
[1754392823891,0.58999263,114910.0,114900.0,0.0934001]
[1754392824091,0.58999263,114910.0,114900.0,0.1087901]
[1754392826093,0.2298087,114910.0,114900.0,0.1087901]
[1754392827400,0.2069887,114910.0,114900.0,0.1087901]
[1754392827898,0.2298087,114910.0,114900.0,0.1087901]
[1754392828798,0.58999263,114910.0,114900.0,0.1087901]
[1754392835101,0.2298087,114910.0,114900.0,0.1087901]
[1754392835295,0.58999263,114910.0,114900.0,0.1087901]
[1754392838403,0.61725717,114910.0,114900.0,0.1087901]
[1754392839994,0.61725717,114910.0,114900.0,0.0881101]
[1754392840605,0.66869717,114910.0,114900.0,0.0038175]
[1754392840803,0.2253439,114900.0,114890.0,0.07153]
[1754392841003,0.65365783,114900.0,114890.0,0.07153]
[1754392841203,0.2934739,114900.0,114890.0,0.07153]
[1754392841404,0.65365783,114900.0,114890.0,0.07153]
[1754392842009,0.32147456,114900.0,114890.0,0.07153]
[1754392842702,0.72685831,114900.0,114890.0,0.53456375]
[1754392843306,1.15956438,114900.0,114890.0,0.02466]
[1754392843500,0.225359,114890.0,114880.0,0.17932761]
[1754392843705,0.69887275,114890.0,114880.0,0.12918]
[1754392843907,0.293489,114890.0,114880.0,0.12918]
[1754392844409,0.69887275,114890.0,114880.0,0.1991083]
[1754392844611,0.69887275,114890.0,114880.0,0.2001083]
[1754392845715,0.69887275,114890.0,114880.0,0.60649205]
[1754392845908,0.69891275,114890.0,114880.0,0.60649205]
[1754392846406,0.69891275,114890.0,114880.0,0.55254205]
[1754392846611,0.65394662,114890.0,114880.0,0.2011083]
[1754392847917,0.293529,114890.0,114880.0,0.2011083]
[1754392848123,0.68126058,114890.0,114880.0,0.2011083]
[1754392848413,0.65394662,114890.0,114880.0,0.2011083]
[1754392851409,0.65394662,114890.0,114880.0,0.1471583]
[1754392851615,0.65394662,114890.0,114880.0,0.2011083]
[1754392853612,0.293529,114890.0,114880.0,0.2011083]
[1754392853812,0.65394662,114890.0,114880.0,0.2011083]
[1754392856713,0.293529,114890.0,114880.0,0.2011083]
[1754392856914,0.65394662,114890.0,114880.0,0.2011083]
[1754392860418,0.293529,114890.0,114880.0,0.2011083]
[1754392860620,0.65394662,114890.0,114880.0,0.2011083]
[1754392862120,0.293529,114890.0,114880.0,0.2011083]
[1754392862315,0.65394662,114890.0,114880.0,0.2011083]
[1754392864915,0.174129,114890.0,114880.0,0.2011083]
[1754392865115,0.218859,114890.0,114880.0,0.2011083]
[1754392865420,0.270409,114890.0,114880.0,0.2011083]
[1754392866417,0.293229,114890.0,114880.0,0.2011083]
[1754392866618,0.69868154,114890.0,114880.0,0.60656084]
[1754392866812,0.69868154,114890.0,114880.0,0.2011083]
[1754392869223,0.67586154,114890.0,114880.0,0.0719283]
[1754392869425,0.69868154,114890.0,114880.0,0.1259783]
[1754392869625,0.69868154,114890.0,114880.0,0.2007583]
[1754392872033,0.69868154,114890.0,114880.0,0.1797383]
[1754392872225,0.69868154,114890.0,114880.0,0.0963783]
[1754392873931,0.69868154,114890.0,114880.0,0.1297183]
[1754392876132,0.69868154,114890.0,114880.0,0.0963783]
[1754392877226,0.69868154,114890.0,114880.0,1e-07]
[1754392877227,1.10413408,114890.0,114880.0,1e-07]
[1754392877432,0.69868154,114890.0,114880.0,1e-07]
[1754392878542,0.72606885,114890.0,114880.0,1e-07]
[1754392881436,1.13152139,114890.0,114880.0,1e-07]
[1754392881640,0.72606885,114890.0,114880.0,1e-07]
[1754392883034,1.13152139,114890.0,114880.0,1e-07]
[1754392883232,0.72606885,114890.0,114880.0,1e-07]
[1754392883839,1.13152139,114890.0,114880.0,1e-07]
[1754392884830,0.72606885,114890.0,114880.0,1e-07]
[1754392890341,0.69868154,114890.0,114880.0,1e-07]
[1754392890940,1.10413408,114890.0,114880.0,1e-07]
[1754392891442,0.2929096,114870.0,114860.0,0.02445]
[1754392891641,1.69977468,114870.0,114860.0,0.08758]
[1754392891838,1.69977468,114870.0,114860.0,0.13066]
[1754392892535,0.8888696,114870.0,114860.0,0.13066]
[1754392892740,1.69989468,114870.0,114860.0,0.13266]
[1754392893731,1.69989468,114870.0,114860.0,0.13566]
[1754392894131,0.2929096,114870.0,114860.0,0.13566]
[1754392894338,1.70053468,114870.0,114860.0,0.13566]
[1754392894943,0.8896296,114870.0,114860.0,0.13566]
[1754392895142,1.70053468,114870.0,114860.0,0.13566]
[1754392899650,1.70085468,114870.0,114860.0,0.13566]
[1754392900547,0.8899496,114870.0,114860.0,0.13566]
[1754392900745,1.70085468,114870.0,114860.0,0.13566]
[1754392901347,0.69836214,114870.0,114860.0,0.13566]
[1754392901541,0.2700896,114870.0,114860.0,0.54111254]
[1754392901849,1.25776214,114870.0,114860.0,0.54111254]
[1754392902051,0.66044214,114870.0,114860.0,0.54111254]
[1754392902248,0.67510214,114870.0,114860.0,0.54111254]
[1754392904352,0.67510214,114870.0,114860.0,0.13566]
[1754392904553,0.67510214,114870.0,114860.0,0.54111254]
[1754392905848,0.1895596,114870.0,114860.0,0.54111254]
[1754392906048,0.1895596,114870.0,114860.0,0.71524744]
[1754392906850,0.1895596,114870.0,114860.0,0.54111254]
[1754392907053,0.59501214,114870.0,114860.0,0.54111254]
[1754392907252,0.62433214,114870.0,114860.0,0.54111254]
[1754392907753,0.63899214,114870.0,114860.0,0.54111254]
[1754392908453,0.63899214,114870.0,114860.0,0.71524744]
[1754392908655,0.63899214,114870.0,114860.0,0.54111254]
[1754392910157,0.67543214,114870.0,114860.0,0.54111254]
[1754392912653,0.2699796,114870.0,114860.0,0.54111254]
[1754392912853,0.67543214,114870.0,114860.0,0.54111254]
[1754392917762,0.69822214,114870.0,114860.0,0.54111254]
[1754392918064,0.69822214,114870.0,114860.0,0.13566]
[1754392918964,0.69822214,114870.0,114860.0,0.54111254]
[1754392919564,1.10367468,114870.0,114860.0,0.13566]
[1754392919762,1.10367468,114870.0,114860.0,0.005]
[1754392920661,0.2927696,114870.0,114860.0,0.005]
[1754392920866,0.67543214,114870.0,114860.0,0.53862254]
[1754392921265,0.67543214,114870.0,114860.0,0.71275794]
[1754392921568,0.67543214,114870.0,114860.0,0.71175794]
[1754392921763,0.67543214,114870.0,114860.0,0.53762254]
[1754392921968,0.67543214,114870.0,114860.0,0.71175804]
[1754392922164,0.67543214,114870.0,114860.0,0.13217]
[1754392922369,0.67543214,114870.0,114860.0,0.53662254]
[1754392922564,0.69825214,114870.0,114860.0,0.53662254]
[1754392922958,0.69825214,114870.0,114860.0,0.13117]
[1754392923971,0.69825214,114870.0,114860.0,0.53662254]
[1754392925865,0.1741196,114870.0,114860.0,0.71075824]
[1754392926171,0.2318896,114870.0,114860.0,0.71075824]
[1754392928174,0.2318896,114870.0,114860.0,0.3053057]
[1754392928373,0.2318896,114870.0,114860.0,0.71075824]
[1754392928873,0.63734214,114870.0,114860.0,0.71075824]
[1754392929470,0.63734214,114870.0,114860.0,0.53662254]
[1754392929874,0.65126214,114870.0,114860.0,0.53662254]
[1754392930473,0.65126214,114870.0,114860.0,0.71075824]
[1754392930977,0.65126214,114870.0,114860.0,0.53662254]
[1754392931176,0.67364214,114870.0,114860.0,0.53662254]
[1754392932073,0.67364214,114870.0,114860.0,0.13117]
[1754392932378,0.69646214,114870.0,114860.0,0.53662254]
[1754392932777,0.69646214,114870.0,114860.0,0.13117]
[1754392933079,0.69646214,114870.0,114860.0,0.53662254]
[1754392936880,0.69646214,114870.0,114860.0,0.53557254]
[1754392937985,0.69646214,114870.0,114860.0,0.70970834]
[1754392938883,0.69646214,114870.0,114860.0,0.3042558]
[1754392939079,0.57957214,114870.0,114860.0,0.70970834]
[1754392939284,0.60889214,114870.0,114860.0,0.70970834]
[1754392939475,0.2034396,114870.0,114860.0,0.70970834]
[1754392940383,0.1741206,114870.0,114860.0,0.79675944]
[1754392941080,0.1741206,114870.0,114860.0,0.3913069]
[1754392941282,0.1741206,114870.0,114860.0,0.79675944]
[1754392941585,0.1741206,114870.0,114860.0,0.70969574]
[1754392941781,0.2188906,114870.0,114860.0,0.70969574]
[1754392942485,0.2034406,114870.0,114860.0,0.70969574]
[1754392944487,0.2034406,114870.0,114860.0,0.3042432]
[1754392944685,0.2034406,114870.0,114860.0,0.70969574]
[1754392944885,0.2034406,114870.0,114860.0,0.53557254]
[1754392945096,0.67311314,114870.0,114860.0,0.53557254]
[1754392946593,0.2676606,114870.0,114860.0,0.53557254]
[1754392946786,0.67311314,114870.0,114860.0,0.53557254]
[1754392947890,0.67311314,114870.0,114860.0,0.70970834]
[1754392948092,0.67311314,114870.0,114860.0,0.53557254]
[1754392948292,0.2676606,114870.0,114860.0,0.53557254]
[1754392948593,0.67311314,114870.0,114860.0,0.53557254]
[1754392948892,0.2676606,114870.0,114860.0,0.70970834]
[1754392949092,0.67311314,114870.0,114860.0,0.53557254]
[1754392950492,0.69593314,114870.0,114860.0,0.53557254]
[1754392952892,0.69593314,114870.0,114860.0,0.13012]
[1754392953093,0.69593314,114870.0,114860.0,0.53557254]
[1754392954996,0.2904806,114870.0,114860.0,0.53557254]
[1754392955196,0.69593314,114870.0,114860.0,0.70970894]
[1754392955491,0.2676606,114870.0,114860.0,0.70970894]
[1754392955704,0.2676591,114870.0,114860.0,0.70970894]
[1754392955888,0.54923794,114880.0,114860.0,0.53557254]
[1754392956088,0.3113413,114880.0,114870.0,1.30266384]
[1754392956294,0.1741062,114880.0,114870.0,1.38972174]
[1754392956493,0.1741062,114880.0,114870.0,1.79517428]
[1754392956897,0.1741062,114880.0,114870.0,1.38972174]
[1754392957897,0.1741062,114880.0,114870.0,1.39072174]
[1754392959599,0.1741062,114880.0,114870.0,1.79617428]
[1754392959795,0.1741062,114880.0,114870.0,1.34719204]
[1754392960001,0.1741062,114880.0,114870.0,0.8982113]
[1754392960193,0.1741062,114880.0,114870.0,1.30366384]
[1754392960595,0.2034262,114880.0,114870.0,1.30366384]
[1754392962097,0.0435193,114900.0,114870.0,1.27190414]
[1754392962400,2.21011744,114890.0,114880.0,0.53190254]
[1754392963601,1.7621386,114890.0,114880.0,0.70601014]
[1754392963904,1.7186155,114890.0,114880.0,0.70601014]
[1754392964999,0.44896804,114910.0,114880.0,0.70601014]
[1754392965199,0.3046377,114900.0,114890.0,0.72365]
[1754392965401,0.3046377,114900.0,114890.0,1.12910254]
[1754392966800,0.2611159,114900.0,114890.0,1.20010833]
[1754392969501,0.2611159,114900.0,114890.0,1.22147491]
[1754392969707,0.2611159,114900.0,114890.0,1.39556731]
[1754392970207,0.2611159,114900.0,114890.0,1.22147491]
[1754392972606,0.2611159,114900.0,114890.0,1.39556731]
[1754392972807,0.2611159,114900.0,114890.0,0.79465579]
[1754392973009,0.2611159,114900.0,114890.0,1.20010833]
[1754392976110,0.2611159,114900.0,114890.0,1.22094372]
[1754392976512,0.2611159,114900.0,114890.0,1.39503622]
[1754392977310,0.2611159,114900.0,114890.0,1.80048876]
[1754392980016,0.2175966,114900.0,114890.0,1.80048876]
[1754392981209,0.2175966,114900.0,114890.0,0.98958368]
[1754392981415,0.2175966,114900.0,114890.0,1.80048876]
[1754392986413,0.2175966,114900.0,114890.0,0.98958368]
[1754392986620,0.2175966,114900.0,114890.0,1.80048876]
[1754393002033,0.2175966,114900.0,114890.0,1.74932876]
[1754393003633,0.328189,114910.0,114890.0,1.70579966]
[1754393003839,0.2611101,114910.0,114900.0,1.13352328]
[1754393004036,0.1740639,114910.0,114900.0,1.26407548]
[1754393004634,0.1740639,114910.0,114900.0,1.22055688]
[1754393007638,0.1740639,114910.0,114900.0,0.6744518]
[1754393007839,0.1740639,114910.0,114900.0,1.48535688]
[1754393015346,0.1931835,114920.0,114910.0,0.3037078]
[1754393015347,0.4316653,114920.0,114910.0,0.3037078]
[1754393015642,0.4316653,114920.0,114910.0,1.32551034]
[1754393015842,0.4624053,114920.0,114910.0,1.32551034]
[1754393020042,0.4624053,114920.0,114910.0,1.15144644]
[1754393020651,0.4624053,114920.0,114910.0,1.32551034]
[1754393025051,0.3690253,114920.0,114910.0,1.32551034]
[1754393028650,0.4417753,114920.0,114910.0,1.32551034]
[1754393030953,0.4725153,114920.0,114910.0,1.32551034]
[1754393039353,0.2610899,114920.0,114910.0,1.32551034]
[1754393039557,0.2175746,114920.0,114910.0,1.32551034]
[1754393039765,0.2175746,114920.0,114910.0,1.74889785]
[1754393040356,0.2175746,114920.0,114910.0,1.34344531]
[1754393040951,0.2433446,114920.0,114910.0,1.34344531]
[1754393043665,0.2433446,114920.0,114910.0,0.93799277]
[1754393043859,0.2433446,114920.0,114910.0,1.34344531]
[1754393050663,0.1740618,114920.0,114910.0,2.01369785]
[1754393050867,0.3045793,114930.0,114920.0,0.0432487]
[1754393051066,0.3045793,114930.0,114920.0,1.14408248]
[1754393052971,0.3327293,114930.0,114920.0,1.14408248]
[1754393053270,0.3520893,114930.0,114920.0,1.14408248]
[1754393053773,0.3693093,114930.0,114920.0,1.14408248]
[1754393054074,0.3984993,114930.0,114920.0,1.14408248]
[1754393059870,0.4436293,114930.0,114920.0,1.14408248]
[1754393063276,0.4436293,114930.0,114920.0,0.3331774]
[1754393063577,0.4436293,114930.0,114920.0,1.14408248]
[1754393064074,0.3327293,114930.0,114920.0,1.14408248]
[1754393064269,0.3693093,114930.0,114920.0,1.14408248]
[1754393064578,0.3984993,114930.0,114920.0,1.14408248]
[1754393066276,0.3693093,114930.0,114920.0,1.14408248]
[1754393066478,0.2822871,114930.0,114920.0,1.14408248]
[1754393066668,0.3692831,114940.0,114930.0,0.0529436]
[1754393066868,0.4717931,114940.0,114930.0,1.69834228]
[1754393067479,0.3327031,114940.0,114930.0,1.69618228]
[1754393067776,0.3692831,114940.0,114930.0,1.69834228]
[1754393068076,0.3327031,114940.0,114930.0,1.69834228]
[1754393069868,0.4717931,114940.0,114930.0,1.69834228]
[1754393070781,0.4717931,114940.0,114930.0,1.10114228]
[1754393070976,0.4717931,114940.0,114930.0,1.69846228]
[1754393071782,0.4717931,114940.0,114930.0,1.10114228]
[1754393071984,0.4717931,114940.0,114930.0,1.69854228]
[1754393073383,0.4717931,114940.0,114930.0,1.74284915]
[1754393074189,0.4717931,114940.0,114930.0,1.69854228]
[1754393080680,0.4717931,114940.0,114930.0,0.8876372]
[1754393080884,0.4717931,114940.0,114930.0,1.69854228]
[1754393089490,0.3974731,114940.0,114930.0,1.69854228]
[1754393091691,0.3692831,114940.0,114930.0,1.69854228]
[1754393092785,0.3692831,114940.0,114930.0,2.36879482]
[1754393092786,0.06473,114940.0,114930.0,2.36879482]
[1754393093187,0.2387485,114940.0,114930.0,2.36879482]
[1754393095190,1.7387485,114940.0,114930.0,2.36879482]
[1754393097294,1.7387485,114940.0,114930.0,1.96334228]
[1754393099494,1.56473,114940.0,114930.0,2.36879482]
[1754393100191,1.7387485,114940.0,114930.0,2.36879482]
[1754393100697,1.7387485,114940.0,114930.0,1.96334228]
[1754393101396,1.7387485,114940.0,114930.0,1.96118228]
[1754393101694,1.8130885,114940.0,114930.0,1.96118228]
[1754393102291,1.7765085,114940.0,114930.0,1.90984228]
[1754393104601,1.60249,114940.0,114930.0,2.31529482]
[1754393105299,0.2610203,114950.0,114940.0,0.1740185]
[1754393105599,0.3275903,114950.0,114940.0,1.12534358]
[1754393106601,0.3275903,114950.0,114940.0,1.09562358]
[1754393106899,0.2840869,114950.0,114940.0,1.15332358]
[1754393107300,0.3102369,114950.0,114940.0,1.15332358]
[1754393107600,0.3800069,114950.0,114940.0,1.15332358]
[1754393109697,0.3800069,114950.0,114940.0,0.3424185]
[1754393109901,0.3800069,114950.0,114940.0,1.15332358]
[1754393111102,0.3800069,114950.0,114940.0,1.41812358]
[1754393111601,0.3800069,114950.0,114940.0,1.01267104]
[1754393111899,0.3800069,114950.0,114940.0,0.98469104]
[1754393114504,0.3800069,114950.0,114940.0,1.61007104]
[1754393115405,0.3800069,114950.0,114940.0,1.60995104]
[1754393116103,0.3800069,114950.0,114940.0,2.01540358]
[1754393116608,0.3800069,114950.0,114940.0,1.60995104]
[1754393116805,0.3800069,114950.0,114940.0,1.01267104]
[1754393117004,0.3800069,114950.0,114940.0,1.60995104]
[1754393120818,0.3800069,114950.0,114940.0,1.01267104]
[1754393121017,0.3800069,114950.0,114940.0,1.61019104]
[1754393122418,0.3800069,114950.0,114940.0,2.01564358]
[1754393125220,0.2667355,114950.0,114940.0,2.01564358]
[1754393125420,0.2366555,114950.0,114940.0,2.01564358]
[1754393128623,0.2667355,114950.0,114940.0,2.01564358]
[1754393128823,0.3365055,114950.0,114940.0,2.01564358]
[1754393130522,0.3092555,114950.0,114940.0,2.01564358]
[1754393130726,0.1866555,114950.0,114940.0,2.01564358]
[1754393131126,0.1675755,114950.0,114940.0,2.01564358]
[1754393132017,0.1501655,114950.0,114940.0,2.01564358]
[1754393135727,0.1251655,114950.0,114940.0,2.01564358]
[1754393135927,0.0920155,114950.0,114940.0,2.01564358]
[1754393136320,0.1210655,114950.0,114940.0,2.01564358]
[1754393136930,0.2030615,114950.0,114940.0,2.01532358]
[1754393137125,0.2000615,114950.0,114940.0,2.01532358]
[1754393139131,0.2180715,114950.0,114940.0,2.01532358]
[1754393139331,0.2378515,114950.0,114940.0,2.01532358]
[1754393139833,0.2378515,114950.0,114940.0,2.01520358]
[1754393140035,0.2836215,114950.0,114940.0,2.01520358]
[1754393143033,0.3139715,114950.0,114940.0,0.6072185]
[1754393143233,0.3446215,114950.0,114940.0,1.60967104]
[1754393144234,0.3446215,114950.0,114940.0,0.87410104]
[1754393144436,0.3446215,114950.0,114940.0,1.47138094]
[1754393144636,0.3446215,114950.0,114940.0,1.51572094]
[1754393145138,0.3446215,114950.0,114940.0,1.54548094]
[1754393145333,0.3446215,114950.0,114940.0,1.47138094]
[1754393145526,0.3446215,114950.0,114940.0,1.54548094]
[1754393145936,0.3446215,114950.0,114940.0,1.37146254]
[1754393146639,0.3446215,114950.0,114940.0,1.28068094]
[1754393148042,0.3446215,114950.0,114940.0,1.30757094]
[1754393150344,0.2682015,114950.0,114940.0,1.25092094]
[1754393150544,0.3446215,114950.0,114940.0,1.30757094]
[1754393159942,0.3446215,114950.0,114940.0,0.9399584]
[1754393160144,0.3446215,114950.0,114940.0,1.34541094]
[1754393164549,0.3446215,114950.0,114940.0,0.9399584]
[1754393164752,0.3446215,114950.0,114940.0,0.57411254]
[1754393164945,0.3446215,114950.0,114940.0,1.14402254]
[1754393165250,0.3446215,114950.0,114940.0,1.34588044]
[1754393166251,0.3446215,114950.0,114940.0,0.9404279]
[1754393166452,0.3446215,114950.0,114940.0,1.34588044]
[1754393167847,0.1740115,114950.0,114940.0,1.75133298]
[1754393170048,4e-05,114960.0,114950.0,0.3429228]
[1754393170256,0.1740276,114960.0,114950.0,1.17135959]
[1754393170953,0.1740276,114960.0,114950.0,1.76819959]
[1754393171253,0.1740276,114960.0,114950.0,1.83622914]
[1754393176054,0.2026076,114960.0,114950.0,1.83622914]
[1754393178558,0.2026076,114960.0,114950.0,1.00779235]
[1754393178856,0.2026076,114960.0,114950.0,1.81869743]
[1754393179355,0.2026076,114960.0,114950.0,1.00779235]
[1754393179562,0.2026076,114960.0,114950.0,1.81869743]
[1754393181253,0.1740276,114960.0,114950.0,1.81869743]
[1754393184853,4e-05,114960.0,114950.0,1.81869743]
[1754393185059,0.1740276,114960.0,114950.0,2.08349743]
[1754393185357,4e-05,114960.0,114950.0,2.08349743]
[1754393186662,0.1740276,114960.0,114950.0,2.08349743]
[1754393187257,4e-05,114960.0,114950.0,2.08349743]
[1754393188363,0.1740275,114960.0,114950.0,2.08349743]
[1754393197668,0.1739875,114960.0,114950.0,2.08349743]
[1754393199163,0.4066815,114970.0,114950.0,1.97536933]
[1754393199370,0.3791415,114970.0,114960.0,1.15241268]
[1754393199672,0.3965615,114970.0,114960.0,1.15241268]
[1754393200170,0.4152615,114970.0,114960.0,1.15241268]
[1754393200570,0.3692115,114970.0,114960.0,1.15241268]
[1754393201166,0.4733315,114970.0,114960.0,1.15241268]
[1754393206682,0.4733315,114970.0,114960.0,0.97842508]
[1754393207076,0.4733315,114970.0,114960.0,0.95199508]
[1754393207377,0.4733315,114970.0,114960.0,1.54803508]
[1754393207781,0.4733315,114970.0,114960.0,1.57446508]
[1754393208776,0.4733315,114970.0,114960.0,1.74845268]
[1754393213177,0.4733315,114970.0,114960.0,0.9375476]
[1754393213485,0.4733315,114970.0,114960.0,1.74845268]
[1754393218885,0.4443415,114970.0,114960.0,1.74845268]
[1754393219184,0.3692115,114970.0,114960.0,1.74845268]
[1754393220679,0.4157515,114970.0,114960.0,1.74845268]
[1754393220883,0.4447415,114970.0,114960.0,1.74845268]
[1754393221086,0.4733315,114970.0,114960.0,1.74845268]
[1754393233608,0.4733315,114970.0,114960.0,1.57442508]
[1754393233808,0.4733315,114970.0,114960.0,1.74841228]
[1754393234107,0.4733315,114970.0,114960.0,1.57442508]
[1754393234606,0.4733315,114970.0,114960.0,1.74841298]
[1754393235107,0.4733315,114970.0,114960.0,1.15241298]
[1754393235308,0.4708215,114970.0,114960.0,1.74841298]
[1754393237601,0.4421015,114970.0,114960.0,1.15241298]
[1754393237803,0.4421015,114970.0,114960.0,1.74837298]
[1754393238004,0.3692115,114970.0,114960.0,1.74837298]
[1754393238309,0.3330915,114970.0,114960.0,1.74837298]
[1754393239618,0.3045115,114970.0,114960.0,1.74837298]
[1754393247117,0.2610151,114970.0,114960.0,1.74837298]
[1754393250214,4e-05,114970.0,114960.0,2.41862552]